﻿Body Name,Body,Service Division,Expense Type,Date Paid,Transaction Ref,Invoice Amount,Supplier Name
South Holland District Council,http://statistics.data.gov.uk/id/local-authority/32UF,Corporate,Payroll - Unison,25/11/2021,30008229,923.75 ,Unison
South Holland District Council,http://statistics.data.gov.uk/id/local-authority/32UF,Asset and Property,Buildings Maintenance - Programmed,09/11/2021,30007410,"1,000.00 ",G W Engineering (Lincs) Ltd
South Holland District Council,http://statistics.data.gov.uk/id/local-authority/32UF,Asset and Property,Buildings Maintenance - Programmed,30/11/2021,30007775,895.60 ,Jointline
South Holland District Council,http://statistics.data.gov.uk/id/local-authority/32UF,Asset and Property,Buildings Maintenance - Programmed,18/11/2021,30008039,"1,572.00 ",Glen Farrow UK Ltd
South Holland District Council,http://statistics.data.gov.uk/id/local-authority/32UF,Asset and Property,Buildings Maintenance - Programmed,25/11/2021,30008041,966.25 ,D Harrison
South Holland District Council,http://statistics.data.gov.uk/id/local-authority/32UF,Asset and Property,Buildings Maintenance - Programmed,18/11/2021,30008069,"1,651.67 ",Tuin Ltd
South Holland District Council,http://statistics.data.gov.uk/id/local-authority/32UF,Asset and Property,Buildings Maintenance - Programmed,30/11/2021,30008144,"2,158.50 ",Containers Direct Ltd
South Holland District Council,http://statistics.data.gov.uk/id/local-authority/32UF,Asset and Property,Buildings Maintenance - Programmed,02/12/2021,30008312,"1,247.50 ",A Coupland (Surfacing) Ltd
South Holland District Council,http://statistics.data.gov.uk/id/local-authority/32UF,Asset and Property,Buildings Maintenance - Programmed,30/11/2021,30008414,785.00 ,Tyrrell Contractors Ltd
South Holland District Council,http://statistics.data.gov.uk/id/local-authority/32UF,Asset and Property,Buildings Maintenance - Programmed,30/11/2021,30008415,621.33 ,Tyrrell Contractors Ltd
South Holland District Council,http://statistics.data.gov.uk/id/local-authority/32UF,Asset and Property,Buildings Maintenance - Programmed,09/12/2021,30008422,"1,425.00 ",T M Browne Ltd
South Holland District Council,http://statistics.data.gov.uk/id/local-authority/32UF,Asset and Property,Buildings Maintenance - Responsive,02/11/2021,30007333,"2,120.00 ",D Harrison
South Holland District Council,http://statistics.data.gov.uk/id/local-authority/32UF,Asset and Property,Buildings Maintenance - Responsive,09/11/2021,30007413,"10,350.00 ",G W Engineering (Lincs) Ltd
South Holland District Council,http://statistics.data.gov.uk/id/local-authority/32UF,Asset and Property,Buildings Maintenance - Responsive,04/11/2021,30007465,"1,680.00 ",GBSG Ltd
South Holland District Council,http://statistics.data.gov.uk/id/local-authority/32UF,Asset and Property,Buildings Maintenance - Responsive,30/11/2021,30007696,"2,471.69 ",T M Browne Ltd
South Holland District Council,http://statistics.data.gov.uk/id/local-authority/32UF,Asset and Property,Buildings Maintenance - Responsive,09/11/2021,30007700,"2,173.00 ",Tyrrell Contractors Ltd
South Holland District Council,http://statistics.data.gov.uk/id/local-authority/32UF,Asset and Property,Buildings Maintenance - Responsive,16/11/2021,30007713,"1,549.88 ",Glen Farrow UK Ltd
South Holland District Council,http://statistics.data.gov.uk/id/local-authority/32UF,Asset and Property,Buildings Maintenance - Responsive,11/11/2021,30007830,639.82 ,GBSG Ltd
South Holland District Council,http://statistics.data.gov.uk/id/local-authority/32UF,Asset and Property,Buildings Maintenance - Responsive,18/11/2021,30007944,"1,549.88 ",Glen Farrow UK Ltd
South Holland District Council,http://statistics.data.gov.uk/id/local-authority/32UF,Asset and Property,Buildings Maintenance - Responsive,18/11/2021,30007956,"1,400.00 ",Drains R Us (Eastern) Ltd
South Holland District Council,http://statistics.data.gov.uk/id/local-authority/32UF,Asset and Property,Buildings Maintenance - Responsive,02/12/2021,30008299,607.00 ,Powerplant Ltd
South Holland District Council,http://statistics.data.gov.uk/id/local-authority/32UF,Asset and Property,Buildings Maintenance - Responsive,30/11/2021,30008416,"3,820.00 ",G W Engineering (Lincs) Ltd
South Holland District Council,http://statistics.data.gov.uk/id/local-authority/32UF,Asset and Property,Electricity,09/11/2021,30007529,771.68 ,E.ON
South Holland District Council,http://statistics.data.gov.uk/id/local-authority/32UF,Asset and Property,Electricity,18/11/2021,30007897,"1,086.56 ",E.ON
South Holland District Council,http://statistics.data.gov.uk/id/local-authority/32UF,Asset and Property,Furniture and Equipment,30/11/2021,30008419,"5,647.95 ",E.ON Energy Solutions Ltd
South Holland District Council,http://statistics.data.gov.uk/id/local-authority/32UF,Asset and Property,Gas,16/11/2021,30007320,502.63 ,Espo Gas and Electricity
South Holland District Council,http://statistics.data.gov.uk/id/local-authority/32UF,Asset and Property,Professional and Contractors Fees,09/11/2021,30007378,750.00 ,Oglesby and Limb Ltd
South Holland District Council,http://statistics.data.gov.uk/id/local-authority/32UF,Asset and Property,Professional and Contractors Fees,25/11/2021,30007922,"3,750.00 ",NPS Peterborough Ltd
South Holland District Council,http://statistics.data.gov.uk/id/local-authority/32UF,Building Control,Buildings Maintenance - Programmed,25/11/2021,30007918,873.20 ,Main Street Signs Ltd
South Holland District Council,http://statistics.data.gov.uk/id/local-authority/32UF,Building Control,Professional and Contractors Fees,25/11/2021,30007946,"1,310.00 ",Navitas EAS
South Holland District Council,http://statistics.data.gov.uk/id/local-authority/32UF,Building Control,Professional and Contractors Fees,23/11/2021,30007948,"3,444.00 ",Ocella Ltd
South Holland District Council,http://statistics.data.gov.uk/id/local-authority/32UF,Building Control,Professional and Contractors Fees,02/12/2021,30008165,455.00 ,Barlings KWA Ltd
South Holland District Council,http://statistics.data.gov.uk/id/local-authority/32UF,Capital,Works to Buildings (Main Contractor),16/11/2021,30007945,"1,600.00 ",Mr Clever Clean Peterborough Ltd
South Holland District Council,http://statistics.data.gov.uk/id/local-authority/32UF,Chief Executive,Legal Fees Non-Routine,25/11/2021,30008215,"2,268.00 ",Eversheds LLP
South Holland District Council,http://statistics.data.gov.uk/id/local-authority/32UF,Chief Executive,Legal Fees Non-Routine,25/11/2021,30008216,"10,620.00 ",Eversheds LLP
South Holland District Council,http://statistics.data.gov.uk/id/local-authority/32UF,Chief Executive,Shared Management,09/11/2021,30005071,"12,381.91 ",Breckland Council
South Holland District Council,http://statistics.data.gov.uk/id/local-authority/32UF,Community Development,Computer Hardware Maintenance,30/11/2021,30008027,857.38 ,Spektrix Ltd
South Holland District Council,http://statistics.data.gov.uk/id/local-authority/32UF,Community Development,Electricity,25/11/2021,30008166,462.56 ,Total Energies
South Holland District Council,http://statistics.data.gov.uk/id/local-authority/32UF,Community Development,External Printing and Design Costs,09/12/2021,30008244,"1,132.00 ",TLS Boca Systems UK
South Holland District Council,http://statistics.data.gov.uk/id/local-authority/32UF,Community Development,Film and Entertainment Costs,09/11/2021,30007678,"6,173.87 ",Universal Pictures International UK
South Holland District Council,http://statistics.data.gov.uk/id/local-authority/32UF,Community Development,Film and Entertainment Costs,18/11/2021,30007910,709.87 ,Universal Pictures International UK
South Holland District Council,http://statistics.data.gov.uk/id/local-authority/32UF,Community Development,Furniture and Equipment,25/11/2021,30007740,469.00 ,Hands Free Computing Limited
South Holland District Council,http://statistics.data.gov.uk/id/local-authority/32UF,Community Development,Other Miscellaneous Expenses,02/11/2021,30007411,"13,122.00 ",Parkwood Leisure Limited
South Holland District Council,http://statistics.data.gov.uk/id/local-authority/32UF,Community Development,Other Miscellaneous Expenses,04/11/2021,30007457,"1,200.00 ",Polka Dot Pantomimes
South Holland District Council,http://statistics.data.gov.uk/id/local-authority/32UF,Community Development,Other Miscellaneous Expenses,11/11/2021,30007679,"1,225.00 ",Sketts
South Holland District Council,http://statistics.data.gov.uk/id/local-authority/32UF,Community Development,Other Miscellaneous Expenses,09/11/2021,30007681,"1,260.00 ",Popcorn Media
South Holland District Council,http://statistics.data.gov.uk/id/local-authority/32UF,Community Development,Other Miscellaneous Expenses,18/11/2021,30008023,"1,531.87 ",Farmhouse Chicken Crafts
South Holland District Council,http://statistics.data.gov.uk/id/local-authority/32UF,Community Development,Performers and Entertainers Fees,02/11/2021,30007434,"3,731.70 ",Bound & Gagged Comedy Ltd
South Holland District Council,http://statistics.data.gov.uk/id/local-authority/32UF,Community Development,Performers and Entertainers Fees,11/11/2021,30007677,"3,000.00 ",All-Electric Productions / David Foster Management
South Holland District Council,http://statistics.data.gov.uk/id/local-authority/32UF,Community Development,Professional and Contractors Fees,09/11/2021,30007478,"1,575.00 ",GBSG Ltd
South Holland District Council,http://statistics.data.gov.uk/id/local-authority/32UF,Community Development,Professional and Contractors Fees,16/11/2021,30007487,"1,295.00 ",personal information redacted
South Holland District Council,http://statistics.data.gov.uk/id/local-authority/32UF,Community Development,Professional and Contractors Fees,16/11/2021,30007488,927.50 ,personal information redacted
South Holland District Council,http://statistics.data.gov.uk/id/local-authority/32UF,Community Development,Professional and Contractors Fees,16/11/2021,30007489,927.50 ,personal information redacted
South Holland District Council,http://statistics.data.gov.uk/id/local-authority/32UF,Community Development,Professional and Contractors Fees,25/11/2021,30007624,910.00 ,personal information redacted
South Holland District Council,http://statistics.data.gov.uk/id/local-authority/32UF,Democratic Services,Furniture and Equipment,16/12/2021,30008288,"1,163.75 ",Twofold Ltd
South Holland District Council,http://statistics.data.gov.uk/id/local-authority/32UF,Democratic Services,Legal Fees,25/11/2021,30006820,"1,389.04 ",Lincolnshire County Council
South Holland District Council,http://statistics.data.gov.uk/id/local-authority/32UF,Democratic Services,Legal Fees,11/11/2021,30007747,"1,287.00 ",Birketts Soicitors LLP
South Holland District Council,http://statistics.data.gov.uk/id/local-authority/32UF,Democratic Services,Legal Fees Non-Routine,18/11/2021,30007923,"3,212.00 ",Womble Bond Dickinson UK LLP
South Holland District Council,http://statistics.data.gov.uk/id/local-authority/32UF,Democratic Services,Legal Fees Non-Routine,25/11/2021,30008262,"2,248.00 ",Womble Bond Dickinson UK LLP
South Holland District Council,http://statistics.data.gov.uk/id/local-authority/32UF,Democratic Services,Legal Fees Non-Routine,30/11/2021,30008393,"1,038.00 ",Howes Percival
South Holland District Council,http://statistics.data.gov.uk/id/local-authority/32UF,Democratic Services,Legal Fees Non-Routine,30/11/2021,30008394,"4,602.00 ",Howes Percival
South Holland District Council,http://statistics.data.gov.uk/id/local-authority/32UF,Democratic Services,Other Miscellaneous Expenses,16/11/2021,30007860,"1,330.00 ",Holbeach Memorial Company
South Holland District Council,http://statistics.data.gov.uk/id/local-authority/32UF,Democratic Services,Other Miscellaneous Expenses,16/11/2021,30007898,"3,860.00 ",Young Dons Football Club
South Holland District Council,http://statistics.data.gov.uk/id/local-authority/32UF,Democratic Services,Other Miscellaneous Expenses,16/11/2021,30007941,"2,250.00 ",St Johns Church Weston Hills
South Holland District Council,http://statistics.data.gov.uk/id/local-authority/32UF,Democratic Services,Other Miscellaneous Expenses,25/11/2021,30008314,"1,000.00 ",Holb Regeneration Comm Interest Company
South Holland District Council,http://statistics.data.gov.uk/id/local-authority/32UF,Democratic Services,Other Miscellaneous Expenses,30/11/2021,30008370,"1,850.00 ",Nick Gratton Glass and Glazing
South Holland District Council,http://statistics.data.gov.uk/id/local-authority/32UF,Democratic Services,Postages,25/11/2021,30007932,862.75 ,Civica Election Services
South Holland District Council,http://statistics.data.gov.uk/id/local-authority/32UF,Democratic Services,Postages,30/11/2021,30008437,"2,270.93 ",Civica Election Services
South Holland District Council,http://statistics.data.gov.uk/id/local-authority/32UF,Democratic Services,Stationery,25/11/2021,30007932,837.34 ,Civica Election Services
South Holland District Council,http://statistics.data.gov.uk/id/local-authority/32UF,Economic Development,Grants and Contributions to Outside Bodies - No Service Received,02/11/2021,30007383,"11,223.00 ",Steadfast Training Ltd
South Holland District Council,http://statistics.data.gov.uk/id/local-authority/32UF,Economic Development,Grants and Contributions to Outside Bodies - No Service Received,02/11/2021,30007384,"7,500.00 ",FenFab Engineering Spalding Ltd
South Holland District Council,http://statistics.data.gov.uk/id/local-authority/32UF,Economic Development,Grants and Contributions to Outside Bodies - No Service Received,02/11/2021,30007385,"8,081.00 ",Crossroads Nurseries Ltd
South Holland District Council,http://statistics.data.gov.uk/id/local-authority/32UF,Economic Development,Grants and Contributions to Outside Bodies - No Service Received,02/11/2021,30007386,"3,840.00 ",personal information redacted
South Holland District Council,http://statistics.data.gov.uk/id/local-authority/32UF,Economic Development,Grants and Contributions to Outside Bodies - No Service Received,02/11/2021,30007387,"4,930.00 ",Planpro Photography Ltd
South Holland District Council,http://statistics.data.gov.uk/id/local-authority/32UF,Economic Development,Grants and Contributions to Outside Bodies - No Service Received,02/11/2021,30007388,"4,087.00 ",The Old Exchange Live Events Ltd
South Holland District Council,http://statistics.data.gov.uk/id/local-authority/32UF,Economic Development,Grants and Contributions to Outside Bodies - No Service Received,04/11/2021,30007389,"5,011.00 ",The Holbeach Music & Beer Festival
South Holland District Council,http://statistics.data.gov.uk/id/local-authority/32UF,Economic Development,Grants and Contributions to Outside Bodies - No Service Received,02/11/2021,30007390,"5,306.00 ",A9K Systems Ltd
South Holland District Council,http://statistics.data.gov.uk/id/local-authority/32UF,Economic Development,Grants and Contributions to Outside Bodies - No Service Received,04/11/2021,30007412,"21,657.00 ",Bulley Davey Limited Office Account
South Holland District Council,http://statistics.data.gov.uk/id/local-authority/32UF,Economic Development,Grants and Contributions to Outside Bodies - No Service Received,04/11/2021,30007418,"22,995.00 ",SLPP Ltd
South Holland District Council,http://statistics.data.gov.uk/id/local-authority/32UF,Economic Development,Grants and Contributions to Outside Bodies - No Service Received,04/11/2021,30007427,"19,800.00 ",Paceys
South Holland District Council,http://statistics.data.gov.uk/id/local-authority/32UF,Economic Development,Grants and Contributions to Outside Bodies - No Service Received,04/11/2021,30007439,"3,032.00 ",Maples Solicitors LLP Office Account
South Holland District Council,http://statistics.data.gov.uk/id/local-authority/32UF,Economic Development,Grants and Contributions to Outside Bodies - No Service Received,04/11/2021,30007453,"3,656.00 ",GT Agricultural Engineering Ltd
South Holland District Council,http://statistics.data.gov.uk/id/local-authority/32UF,Economic Development,Grants and Contributions to Outside Bodies - No Service Received,04/11/2021,30007454,"6,650.00 ",Waterfall Wedding Decor Ltd
South Holland District Council,http://statistics.data.gov.uk/id/local-authority/32UF,Economic Development,Grants and Contributions to Outside Bodies - No Service Received,04/11/2021,30007470,"14,770.00 ",FJC Engineering Services Ltd
South Holland District Council,http://statistics.data.gov.uk/id/local-authority/32UF,Economic Development,Grants and Contributions to Outside Bodies - No Service Received,04/11/2021,30007471,"2,834.00 ",Lincs Landscaping Ltd
South Holland District Council,http://statistics.data.gov.uk/id/local-authority/32UF,Economic Development,Grants and Contributions to Outside Bodies - No Service Received,04/11/2021,30007477,"3,835.00 ",personal information redacted
South Holland District Council,http://statistics.data.gov.uk/id/local-authority/32UF,Economic Development,Grants and Contributions to Outside Bodies - No Service Received,04/11/2021,30007494,"4,080.00 ",G and D Engineering (Moulton) Ltd
South Holland District Council,http://statistics.data.gov.uk/id/local-authority/32UF,Economic Development,Grants and Contributions to Outside Bodies - No Service Received,04/11/2021,30007495,"7,000.00 ",Rob Woodcock Engineering Ltd
South Holland District Council,http://statistics.data.gov.uk/id/local-authority/32UF,Economic Development,Grants and Contributions to Outside Bodies - No Service Received,04/11/2021,30007499,"1,390.00 ",personal information redacted
South Holland District Council,http://statistics.data.gov.uk/id/local-authority/32UF,Economic Development,Grants and Contributions to Outside Bodies - No Service Received,04/11/2021,30007500,"4,100.00 ",K M Kurpias Real Pharm Shop
South Holland District Council,http://statistics.data.gov.uk/id/local-authority/32UF,Economic Development,Grants and Contributions to Outside Bodies - No Service Received,04/11/2021,30007501,"4,965.00 ",CVG Solutions Ltd
South Holland District Council,http://statistics.data.gov.uk/id/local-authority/32UF,Economic Development,Grants and Contributions to Outside Bodies - No Service Received,09/11/2021,30007545,"8,511.00 ",Steve Butler Dental Ceramics Ltd
South Holland District Council,http://statistics.data.gov.uk/id/local-authority/32UF,Economic Development,Grants and Contributions to Outside Bodies - No Service Received,11/11/2021,30007572,"21,000.00 ",FenFab Engineering Spalding Ltd
South Holland District Council,http://statistics.data.gov.uk/id/local-authority/32UF,Economic Development,Grants and Contributions to Outside Bodies - No Service Received,09/11/2021,30007607,"2,464.00 ",8 Sail Brewery Ltd
South Holland District Council,http://statistics.data.gov.uk/id/local-authority/32UF,Economic Development,Grants and Contributions to Outside Bodies - No Service Received,09/11/2021,30007619,"2,282.83 ",East Midlands Cooling Services Ltd
South Holland District Council,http://statistics.data.gov.uk/id/local-authority/32UF,Economic Development,Grants and Contributions to Outside Bodies - No Service Received,09/11/2021,30007725,"25,000.00 ",Welland Power Ltd
South Holland District Council,http://statistics.data.gov.uk/id/local-authority/32UF,Economic Development,Grants and Contributions to Outside Bodies - No Service Received,09/11/2021,30007726,"2,068.00 ",personal information redacted
South Holland District Council,http://statistics.data.gov.uk/id/local-authority/32UF,Economic Development,Grants and Contributions to Outside Bodies - No Service Received,09/11/2021,30007727,"16,011.00 ",A & J Services (Spalding) Ltd
South Holland District Council,http://statistics.data.gov.uk/id/local-authority/32UF,Economic Development,Grants and Contributions to Outside Bodies - No Service Received,09/11/2021,30007729,"7,115.00 ",MT Financial Management Ltd
South Holland District Council,http://statistics.data.gov.uk/id/local-authority/32UF,Economic Development,Grants and Contributions to Outside Bodies - No Service Received,09/11/2021,30007730,"12,000.00 ",Strands of Spalding Ltd
South Holland District Council,http://statistics.data.gov.uk/id/local-authority/32UF,Economic Development,Grants and Contributions to Outside Bodies - No Service Received,11/11/2021,30007745,"25,000.00 ",Ace Tones Entertainments Limited
South Holland District Council,http://statistics.data.gov.uk/id/local-authority/32UF,Economic Development,Grants and Contributions to Outside Bodies - No Service Received,11/11/2021,30007749,"2,313.00 ",Fisher and Co Accountancy Limited
South Holland District Council,http://statistics.data.gov.uk/id/local-authority/32UF,Economic Development,Grants and Contributions to Outside Bodies - No Service Received,11/11/2021,30007751,"6,957.00 ",Melon and Co Ltd
South Holland District Council,http://statistics.data.gov.uk/id/local-authority/32UF,Economic Development,Grants and Contributions to Outside Bodies - No Service Received,11/11/2021,30007752,"6,574.00 ",The Well-being Alchemist
South Holland District Council,http://statistics.data.gov.uk/id/local-authority/32UF,Economic Development,Grants and Contributions to Outside Bodies - No Service Received,11/11/2021,30007753,"8,500.00 ",Afterglow Tanning Ltd
South Holland District Council,http://statistics.data.gov.uk/id/local-authority/32UF,Economic Development,Grants and Contributions to Outside Bodies - No Service Received,11/11/2021,30007792,"5,806.00 ",Fox Electrical Supplies Ltd
South Holland District Council,http://statistics.data.gov.uk/id/local-authority/32UF,Economic Development,Grants and Contributions to Outside Bodies - No Service Received,11/11/2021,30007793,"7,083.44 ",Old Clee Bakery Ltd
South Holland District Council,http://statistics.data.gov.uk/id/local-authority/32UF,Economic Development,Grants and Contributions to Outside Bodies - No Service Received,11/11/2021,30007801,"10,745.00 ",People Systems & Process (PSP) Ltd
South Holland District Council,http://statistics.data.gov.uk/id/local-authority/32UF,Economic Development,Grants and Contributions to Outside Bodies - No Service Received,16/11/2021,30007901,"4,000.00 ",personal information redacted
South Holland District Council,http://statistics.data.gov.uk/id/local-authority/32UF,Economic Development,Grants and Contributions to Outside Bodies - No Service Received,16/11/2021,30007902,"4,000.00 ",personal information redacted
South Holland District Council,http://statistics.data.gov.uk/id/local-authority/32UF,Economic Development,Grants and Contributions to Outside Bodies - No Service Received,16/11/2021,30007903,"7,308.00 ",Oakhouse Financial Services Ltd
South Holland District Council,http://statistics.data.gov.uk/id/local-authority/32UF,Economic Development,Grants and Contributions to Outside Bodies - No Service Received,16/11/2021,30007904,"2,500.00 ",Holbeach Computing Solutions Ltd
South Holland District Council,http://statistics.data.gov.uk/id/local-authority/32UF,Economic Development,Grants and Contributions to Outside Bodies - No Service Received,16/11/2021,30007905,"6,582.00 ",R G Barwell and Sons Ltd
South Holland District Council,http://statistics.data.gov.uk/id/local-authority/32UF,Economic Development,Grants and Contributions to Outside Bodies - No Service Received,18/11/2021,30007906,"3,740.00 ",Lincs Party Hire Ltd
South Holland District Council,http://statistics.data.gov.uk/id/local-authority/32UF,Economic Development,Grants and Contributions to Outside Bodies - No Service Received,18/11/2021,30007988,"15,495.00 ",GH Security Systems
South Holland District Council,http://statistics.data.gov.uk/id/local-authority/32UF,Economic Development,Grants and Contributions to Outside Bodies - No Service Received,18/11/2021,30008052,"3,775.00 ",Hannah Joe - Jackalope Joe Coffee Co
South Holland District Council,http://statistics.data.gov.uk/id/local-authority/32UF,Economic Development,Grants and Contributions to Outside Bodies - No Service Received,30/11/2021,30008138,"10,755.00 ",Polka Dot Pantomimes
South Holland District Council,http://statistics.data.gov.uk/id/local-authority/32UF,Economic Development,Grants and Contributions to Outside Bodies - No Service Received,30/11/2021,30008400,"12,513.60 ",Trent Plastics (Fabrications) Ltd
South Holland District Council,http://statistics.data.gov.uk/id/local-authority/32UF,Economic Development,Grants and Contributions to Outside Bodies - No Service Received,30/11/2021,30008403,"5,457.00 ",Ground and Environmental Investigation Limited
South Holland District Council,http://statistics.data.gov.uk/id/local-authority/32UF,Economic Development,Grants and Contributions to Outside Bodies - No Service Received,30/11/2021,30008404,"2,610.00 ",DeftCAD
South Holland District Council,http://statistics.data.gov.uk/id/local-authority/32UF,Economic Development,Grants and Contributions to Outside Bodies - No Service Received,30/11/2021,30008408,"1,387.00 ",personal information redacted
South Holland District Council,http://statistics.data.gov.uk/id/local-authority/32UF,Economic Development,Grants and Contributions to Outside Bodies - No Service Received,30/11/2021,30008429,"2,669.00 ",personal information redacted
South Holland District Council,http://statistics.data.gov.uk/id/local-authority/32UF,Economic Development,Grants and Contributions to Outside Bodies - No Service Received,30/11/2021,30008430,"7,037.00 ",Gibbs of Spalding
South Holland District Council,http://statistics.data.gov.uk/id/local-authority/32UF,Economic Development,Grants and Contributions to Outside Bodies - No Service Received,30/11/2021,30008433,"4,143.00 ",HRT Rider Training
South Holland District Council,http://statistics.data.gov.uk/id/local-authority/32UF,Economic Development,Grants and Contributions to Outside Bodies - No Service Received,07/12/2021,30008434,"6,687.00 ",Oglesby and Limb Ltd
South Holland District Council,http://statistics.data.gov.uk/id/local-authority/32UF,Economic Development,Grants and Contributions to Outside Bodies - No Service Received,30/11/2021,30008435,"11,829.00 ",Ace Cash Registers
South Holland District Council,http://statistics.data.gov.uk/id/local-authority/32UF,Economic Development,Grants and Contributions to Outside Bodies - No Service Received,30/11/2021,30008436,"1,008.00 ",Independent Event Management Ltd
South Holland District Council,http://statistics.data.gov.uk/id/local-authority/32UF,Economic Development,Grants and Contributions to Outside Bodies - No Service Received,30/11/2021,30008438,"14,400.00 ",GB Management Services
South Holland District Council,http://statistics.data.gov.uk/id/local-authority/32UF,Economic Development,Grants and Contributions to Outside Bodies - No Service Received,30/11/2021,30008444,"25,000.00 ",Poplar Farm Flowers Ltd
South Holland District Council,http://statistics.data.gov.uk/id/local-authority/32UF,Economic Development,Grants and Contributions to Outside Bodies - No Service Received,30/11/2021,30008446,"13,214.00 ",GBSG Ltd
South Holland District Council,http://statistics.data.gov.uk/id/local-authority/32UF,Economic Development,Grants and Contributions to Outside Bodies - No Service Received,30/11/2021,30008447,"25,000.00 ",Lambs Flowers Limited
South Holland District Council,http://statistics.data.gov.uk/id/local-authority/32UF,Economic Development,Grants and Contributions to Outside Bodies - No Service Received,02/12/2021,30008455,"14,607.00 ",personal information redacted
South Holland District Council,http://statistics.data.gov.uk/id/local-authority/32UF,Economic Development,Grants and Contributions to Outside Bodies - No Service Received,02/12/2021,30008456,"5,038.00 ",Integrity Plus Ltd
South Holland District Council,http://statistics.data.gov.uk/id/local-authority/32UF,Economic Development,Grants and Contributions to Outside Bodies - No Service Received,02/12/2021,30008457,"4,000.00 ",personal information redacted
South Holland District Council,http://statistics.data.gov.uk/id/local-authority/32UF,Economic Development,Grants and Contributions to Outside Bodies - No Service Received,02/12/2021,30008458,"10,000.00 ",Creative Coatings Ltd
South Holland District Council,http://statistics.data.gov.uk/id/local-authority/32UF,Economic Development,Grants and Contributions to Outside Bodies - No Service Received,02/12/2021,30008459,"4,934.00 ",Crowson Motors Limited
South Holland District Council,http://statistics.data.gov.uk/id/local-authority/32UF,Economic Development,Grants and Contributions to Outside Bodies - No Service Received,02/12/2021,30008460,"15,000.00 ",DeftCAD
South Holland District Council,http://statistics.data.gov.uk/id/local-authority/32UF,Economic Development,Grants and Contributions to Outside Bodies - No Service Received,02/12/2021,30008461,"5,806.50 ",Tennyson Tyres Ltd
South Holland District Council,http://statistics.data.gov.uk/id/local-authority/32UF,Economic Development,Grants and Contributions to Outside Bodies - No Service Received,02/12/2021,30008462,"8,672.00 ",SMT Wood Burning Stoves Ltd
South Holland District Council,http://statistics.data.gov.uk/id/local-authority/32UF,Economic Development,Grants and Contributions to Outside Bodies - No Service Received,02/12/2021,30008463,"3,042.52 ",South Lincs Surveyors
South Holland District Council,http://statistics.data.gov.uk/id/local-authority/32UF,Economic Development,Professional and Contractors Fees,11/11/2021,30007460,525.00 ,Michael Page Internat Recruitment Ltd
South Holland District Council,http://statistics.data.gov.uk/id/local-authority/32UF,Economic Development,Professional and Contractors Fees,18/11/2021,30007640,"1,327.48 ",Social Change UK
South Holland District Council,http://statistics.data.gov.uk/id/local-authority/32UF,Economic Development,Professional and Contractors Fees,11/11/2021,30007774,"1,366.36 ",Social Change UK
South Holland District Council,http://statistics.data.gov.uk/id/local-authority/32UF,Economic Development,Professional and Contractors Fees,16/11/2021,30007909,593.75 ,Michael Page Internat Recruitment Ltd
South Holland District Council,http://statistics.data.gov.uk/id/local-authority/32UF,Economic Development,Professional and Contractors Fees,16/11/2021,30007924,593.75 ,Michael Page Internat Recruitment Ltd
South Holland District Council,http://statistics.data.gov.uk/id/local-authority/32UF,Economic Development,Professional and Contractors Fees,18/11/2021,30007970,"5,448.00 ",Kudos Project Management
South Holland District Council,http://statistics.data.gov.uk/id/local-authority/32UF,Economic Development,Professional and Contractors Fees,18/11/2021,30008086,675.00 ,Michael Page Internat Recruitment Ltd
South Holland District Council,http://statistics.data.gov.uk/id/local-authority/32UF,Economic Development,Professional and Contractors Fees,25/11/2021,30008154,706.25 ,Michael Page Internat Recruitment Ltd
South Holland District Council,http://statistics.data.gov.uk/id/local-authority/32UF,Economic Development,Professional and Contractors Fees,14/12/2021,30008391,"3,000.00 ",Collison and Associates Limited
South Holland District Council,http://statistics.data.gov.uk/id/local-authority/32UF,Environmental Services,Agency Staff,02/11/2021,30007130,"2,715.50 ",Encore Personnel Services Ltd
South Holland District Council,http://statistics.data.gov.uk/id/local-authority/32UF,Environmental Services,Agency Staff,02/11/2021,30007265,"2,787.88 ",Encore Personnel Services Ltd
South Holland District Council,http://statistics.data.gov.uk/id/local-authority/32UF,Environmental Services,Agency Staff,02/11/2021,30007330,"3,852.84 ",Essential Staffing Ltd
South Holland District Council,http://statistics.data.gov.uk/id/local-authority/32UF,Environmental Services,Agency Staff,02/11/2021,30007428,"1,551.93 ",247 Personnel Ltd
South Holland District Council,http://statistics.data.gov.uk/id/local-authority/32UF,Environmental Services,Agency Staff,02/11/2021,30007429,"2,672.43 ",247 Personnel Ltd
South Holland District Council,http://statistics.data.gov.uk/id/local-authority/32UF,Environmental Services,Agency Staff,11/11/2021,30007430,"7,052.55 ",NJW Services
South Holland District Council,http://statistics.data.gov.uk/id/local-authority/32UF,Environmental Services,Agency Staff,23/11/2021,30007431,"1,229.07 ",Blue Arrow Ltd
South Holland District Council,http://statistics.data.gov.uk/id/local-authority/32UF,Environmental Services,Agency Staff,02/11/2021,30007433,517.92 ,Capital Outsourcing Group Food
South Holland District Council,http://statistics.data.gov.uk/id/local-authority/32UF,Environmental Services,Agency Staff,16/11/2021,30007445,"1,497.02 ",Blue Arrow Ltd
South Holland District Council,http://statistics.data.gov.uk/id/local-authority/32UF,Environmental Services,Agency Staff,04/11/2021,30007531,982.72 ,Capital Outsourcing Group Food
South Holland District Council,http://statistics.data.gov.uk/id/local-authority/32UF,Environmental Services,Agency Staff,04/11/2021,30007535,773.61 ,247 Personnel Ltd
South Holland District Council,http://statistics.data.gov.uk/id/local-authority/32UF,Environmental Services,Agency Staff,09/11/2021,30007536,"2,809.71 ",Encore Personnel Services Ltd
South Holland District Council,http://statistics.data.gov.uk/id/local-authority/32UF,Environmental Services,Agency Staff,04/11/2021,30007541,"3,390.66 ",The Best Connection Group Ltd
South Holland District Council,http://statistics.data.gov.uk/id/local-authority/32UF,Environmental Services,Agency Staff,04/11/2021,30007542,"2,795.19 ",The Best Connection Group Ltd
South Holland District Council,http://statistics.data.gov.uk/id/local-authority/32UF,Environmental Services,Agency Staff,04/11/2021,30007544,"2,994.60 ",The Best Connection Group Ltd
South Holland District Council,http://statistics.data.gov.uk/id/local-authority/32UF,Environmental Services,Agency Staff,16/11/2021,30007684,"1,060.00 ",Questech Recruitment Limited
South Holland District Council,http://statistics.data.gov.uk/id/local-authority/32UF,Environmental Services,Agency Staff,09/11/2021,30007685,"1,060.00 ",Questech Recruitment Limited
South Holland District Council,http://statistics.data.gov.uk/id/local-authority/32UF,Environmental Services,Agency Staff,09/11/2021,30007734,"1,934.70 ",Integrity Plus Ltd
South Holland District Council,http://statistics.data.gov.uk/id/local-authority/32UF,Environmental Services,Agency Staff,11/11/2021,30007748,"4,390.42 ",Essential Staffing Ltd
South Holland District Council,http://statistics.data.gov.uk/id/local-authority/32UF,Environmental Services,Agency Staff,11/11/2021,30007750,"4,239.44 ",Essential Staffing Ltd
South Holland District Council,http://statistics.data.gov.uk/id/local-authority/32UF,Environmental Services,Agency Staff,11/11/2021,30007756,"2,861.41 ",The Best Connection Group Ltd
South Holland District Council,http://statistics.data.gov.uk/id/local-authority/32UF,Environmental Services,Agency Staff,09/11/2021,30007758,"3,737.33 ",Encore Personnel Services Ltd
South Holland District Council,http://statistics.data.gov.uk/id/local-authority/32UF,Environmental Services,Agency Staff,16/11/2021,30007799,491.36 ,Capital Outsourcing Group Food
South Holland District Council,http://statistics.data.gov.uk/id/local-authority/32UF,Environmental Services,Agency Staff,30/11/2021,30007806,"1,283.16 ",Blue Arrow Ltd
South Holland District Council,http://statistics.data.gov.uk/id/local-authority/32UF,Environmental Services,Agency Staff,25/11/2021,30007807,"3,114.20 ",Encore Personnel Services Ltd
South Holland District Council,http://statistics.data.gov.uk/id/local-authority/32UF,Environmental Services,Agency Staff,11/11/2021,30007809,"1,218.65 ",Integrity Plus Ltd
South Holland District Council,http://statistics.data.gov.uk/id/local-authority/32UF,Environmental Services,Agency Staff,11/11/2021,30007810,"2,776.85 ",Integrity Plus Ltd
South Holland District Council,http://statistics.data.gov.uk/id/local-authority/32UF,Environmental Services,Agency Staff,11/11/2021,30007816,736.30 ,247 Personnel Ltd
South Holland District Council,http://statistics.data.gov.uk/id/local-authority/32UF,Environmental Services,Agency Staff,25/11/2021,30007828,"2,954.58 ",The Best Connection Group Ltd
South Holland District Council,http://statistics.data.gov.uk/id/local-authority/32UF,Environmental Services,Agency Staff,16/11/2021,30007854,592.00 ,Steves Garden and Household Services
South Holland District Council,http://statistics.data.gov.uk/id/local-authority/32UF,Environmental Services,Agency Staff,16/11/2021,30007881,"4,002.45 ",The Best Connection Group Ltd
South Holland District Council,http://statistics.data.gov.uk/id/local-authority/32UF,Environmental Services,Agency Staff,18/11/2021,30007884,758.69 ,247 Personnel Ltd
South Holland District Council,http://statistics.data.gov.uk/id/local-authority/32UF,Environmental Services,Agency Staff,16/11/2021,30007885,586.74 ,247 Personnel Ltd
South Holland District Council,http://statistics.data.gov.uk/id/local-authority/32UF,Environmental Services,Agency Staff,09/12/2021,30007887,643.80 ,Quality Service Recruitment Ltd
South Holland District Council,http://statistics.data.gov.uk/id/local-authority/32UF,Environmental Services,Agency Staff,16/11/2021,30007890,982.72 ,Capital Outsourcing Group Food
South Holland District Council,http://statistics.data.gov.uk/id/local-authority/32UF,Environmental Services,Agency Staff,16/11/2021,30007892,"2,819.94 ",Integrity Plus Ltd
South Holland District Council,http://statistics.data.gov.uk/id/local-authority/32UF,Environmental Services,Agency Staff,16/11/2021,30007908,"1,191.11 ",Integrity Plus Ltd
South Holland District Council,http://statistics.data.gov.uk/id/local-authority/32UF,Environmental Services,Agency Staff,16/11/2021,30007958,766.15 ,247 Personnel Ltd
South Holland District Council,http://statistics.data.gov.uk/id/local-authority/32UF,Environmental Services,Agency Staff,16/11/2021,30007964,"2,844.33 ",247 Personnel Ltd
South Holland District Council,http://statistics.data.gov.uk/id/local-authority/32UF,Environmental Services,Agency Staff,16/11/2021,30007965,"2,761.56 ",247 Personnel Ltd
South Holland District Council,http://statistics.data.gov.uk/id/local-authority/32UF,Environmental Services,Agency Staff,16/11/2021,30007966,609.60 ,247 Personnel Ltd
South Holland District Council,http://statistics.data.gov.uk/id/local-authority/32UF,Environmental Services,Agency Staff,23/11/2021,30008087,"4,249.53 ",Essential Staffing Ltd
South Holland District Council,http://statistics.data.gov.uk/id/local-authority/32UF,Environmental Services,Agency Staff,18/11/2021,30008088,"3,054.16 ",Encore Personnel Services Ltd
South Holland District Council,http://statistics.data.gov.uk/id/local-authority/32UF,Environmental Services,Agency Staff,25/11/2021,30008089,581.60 ,Steves Garden and Household Services
South Holland District Council,http://statistics.data.gov.uk/id/local-authority/32UF,Environmental Services,Agency Staff,23/11/2021,30008128,"4,364.67 ",Essential Staffing Ltd
South Holland District Council,http://statistics.data.gov.uk/id/local-authority/32UF,Environmental Services,Agency Staff,23/11/2021,30008129,"3,663.15 ",Integrity Plus Ltd
South Holland District Council,http://statistics.data.gov.uk/id/local-authority/32UF,Environmental Services,Agency Staff,25/11/2021,30008149,883.12 ,Capital Outsourcing Group Food
South Holland District Council,http://statistics.data.gov.uk/id/local-authority/32UF,Environmental Services,Agency Staff,23/11/2021,30008150,"1,473.40 ",Integrity Plus Ltd
South Holland District Council,http://statistics.data.gov.uk/id/local-authority/32UF,Environmental Services,Agency Staff,30/11/2021,30008151,"3,196.38 ",Encore Personnel Services Ltd
South Holland District Council,http://statistics.data.gov.uk/id/local-authority/32UF,Environmental Services,Agency Staff,14/12/2021,30008152,"1,497.02 ",Blue Arrow Ltd
South Holland District Council,http://statistics.data.gov.uk/id/local-authority/32UF,Environmental Services,Agency Staff,25/11/2021,30008183,592.00 ,Steves Garden and Household Services
South Holland District Council,http://statistics.data.gov.uk/id/local-authority/32UF,Environmental Services,Agency Staff,02/12/2021,30008192,636.00 ,Questech Recruitment Limited
South Holland District Council,http://statistics.data.gov.uk/id/local-authority/32UF,Environmental Services,Agency Staff,07/12/2021,30008278,"1,232.25 ",Questech Recruitment Limited
South Holland District Council,http://statistics.data.gov.uk/id/local-authority/32UF,Environmental Services,Agency Staff,30/11/2021,30008440,803.46 ,247 Personnel Ltd
South Holland District Council,http://statistics.data.gov.uk/id/local-authority/32UF,Environmental Services,Agency Staff,30/11/2021,30008442,"3,205.59 ",The Best Connection Group Ltd
South Holland District Council,http://statistics.data.gov.uk/id/local-authority/32UF,Environmental Services,Clothing Uniforms and Laundry,30/11/2021,30007947,587.86 ,Groundsman Tools and Supplies LLP
South Holland District Council,http://statistics.data.gov.uk/id/local-authority/32UF,Environmental Services,Commercial Vehicle Lease Payments (Less than 12 months),30/11/2021,30007616,"1,732.66 ",Go Plant Fleet Services
South Holland District Council,http://statistics.data.gov.uk/id/local-authority/32UF,Environmental Services,Fuel and Oil,02/11/2021,30007239,"7,887.21 ",C H Jones Ltd
South Holland District Council,http://statistics.data.gov.uk/id/local-authority/32UF,Environmental Services,Fuel and Oil,02/11/2021,30007426,"7,724.85 ",C H Jones Ltd
South Holland District Council,http://statistics.data.gov.uk/id/local-authority/32UF,Environmental Services,Fuel and Oil,04/11/2021,30007537,"7,934.52 ",C H Jones Ltd
South Holland District Council,http://statistics.data.gov.uk/id/local-authority/32UF,Environmental Services,Fuel and Oil,09/11/2021,30007581,"1,450.00 ",WCF Chandlers
South Holland District Council,http://statistics.data.gov.uk/id/local-authority/32UF,Environmental Services,Fuel and Oil,11/11/2021,30007608,732.24 ,Witham Oil and Paint Ltd
South Holland District Council,http://statistics.data.gov.uk/id/local-authority/32UF,Environmental Services,Fuel and Oil,16/11/2021,30007720,"1,618.20 ",WCF Chandlers
South Holland District Council,http://statistics.data.gov.uk/id/local-authority/32UF,Environmental Services,Fuel and Oil,18/11/2021,30007889,"8,255.91 ",C H Jones Ltd
South Holland District Council,http://statistics.data.gov.uk/id/local-authority/32UF,Environmental Services,Fuel and Oil,18/11/2021,30008091,"8,027.14 ",C H Jones Ltd
South Holland District Council,http://statistics.data.gov.uk/id/local-authority/32UF,Environmental Services,Fuel and Oil,16/12/2021,30008284,576.00 ,Chemodex Limited
South Holland District Council,http://statistics.data.gov.uk/id/local-authority/32UF,Environmental Services,Furniture and Equipment,18/11/2021,30007511,575.00 ,Vision Techniques U K Ltd
South Holland District Council,http://statistics.data.gov.uk/id/local-authority/32UF,Environmental Services,Furniture and Equipment,30/11/2021,30007746,"1,772.24 ",Russells Kirbymoorside Ltd
South Holland District Council,http://statistics.data.gov.uk/id/local-authority/32UF,Environmental Services,Furniture and Equipment,11/11/2021,30007798,"1,091.79 ",Veolia Es UK Ltd
South Holland District Council,http://statistics.data.gov.uk/id/local-authority/32UF,Environmental Services,Furniture and Equipment,30/11/2021,30008193,"1,082.37 ",Veolia Es UK Ltd
South Holland District Council,http://statistics.data.gov.uk/id/local-authority/32UF,Environmental Services,Furniture and Equipment,23/12/2021,30008347,575.00 ,Vision Techniques U K Ltd
South Holland District Council,http://statistics.data.gov.uk/id/local-authority/32UF,Environmental Services,Grants and Contributions - Where a Service is Received,23/11/2021,30008141,639.96 ,Fleet Parish Council
South Holland District Council,http://statistics.data.gov.uk/id/local-authority/32UF,Environmental Services,Maintenance,09/12/2021,30008197,490.00 ,Vision Techniques U K Ltd
South Holland District Council,http://statistics.data.gov.uk/id/local-authority/32UF,Environmental Services,Maintenance,09/12/2021,30008198,442.00 ,Vision Techniques U K Ltd
South Holland District Council,http://statistics.data.gov.uk/id/local-authority/32UF,Environmental Services,Materials and Consumables,11/11/2021,30007695,481.48 ,PHS Group
South Holland District Council,http://statistics.data.gov.uk/id/local-authority/32UF,Environmental Services,Materials and Consumables,14/12/2021,30008315,"7,258.68 ",Berry BPI Refuse
South Holland District Council,http://statistics.data.gov.uk/id/local-authority/32UF,Environmental Services,Other Miscellaneous Expenses,04/11/2021,30007003,680.00 ,W R Kerfoot and Partners
South Holland District Council,http://statistics.data.gov.uk/id/local-authority/32UF,Environmental Services,Professional and Contractors Fees,11/11/2021,30007332,"1,175.00 ",Weaar
South Holland District Council,http://statistics.data.gov.uk/id/local-authority/32UF,Environmental Services,Professional and Contractors Fees,23/11/2021,30007343,"3,950.00 ",Weaar
South Holland District Council,http://statistics.data.gov.uk/id/local-authority/32UF,Environmental Services,Professional and Contractors Fees,23/11/2021,30007344,750.00 ,Weaar
South Holland District Council,http://statistics.data.gov.uk/id/local-authority/32UF,Environmental Services,Professional and Contractors Fees,02/11/2021,30007407,"2,458.72 ",GBSG Ltd
South Holland District Council,http://statistics.data.gov.uk/id/local-authority/32UF,Environmental Services,Professional and Contractors Fees,09/11/2021,30007521,989.76 ,Lincolnshire County Council
South Holland District Council,http://statistics.data.gov.uk/id/local-authority/32UF,Environmental Services,Professional and Contractors Fees,09/11/2021,30007522,"1,368.27 ",Lincolnshire County Council
South Holland District Council,http://statistics.data.gov.uk/id/local-authority/32UF,Environmental Services,Professional and Contractors Fees,30/11/2021,30007652,"1,042.88 ",Kings Armoured Security Services Ltd
South Holland District Council,http://statistics.data.gov.uk/id/local-authority/32UF,Environmental Services,Professional and Contractors Fees,09/12/2021,30008049,975.00 ,Weaar
South Holland District Council,http://statistics.data.gov.uk/id/local-authority/32UF,Environmental Services,Professional and Contractors Fees,09/12/2021,30008050,450.00 ,Weaar
South Holland District Council,http://statistics.data.gov.uk/id/local-authority/32UF,Environmental Services,Professional and Contractors Fees,09/12/2021,30008402,975.00 ,Weaar
South Holland District Council,http://statistics.data.gov.uk/id/local-authority/32UF,Environmental Services,"Purchase of Plant, Machinery and Equipment",23/11/2021,30008147,"14,448.00 ",One51 ES Plastics UK Ltd TA MGB Plastics
South Holland District Council,http://statistics.data.gov.uk/id/local-authority/32UF,Environmental Services,"Purchase of Plant, Machinery and Equipment",25/11/2021,30008148,"11,008.00 ",One51 ES Plastics UK Ltd TA MGB Plastics
South Holland District Council,http://statistics.data.gov.uk/id/local-authority/32UF,Environmental Services,Transport Insurance Excess,23/11/2021,30008114,"1,176.24 ",Kents of Spalding Ltd
South Holland District Council,http://statistics.data.gov.uk/id/local-authority/32UF,Environmental Services,Workshop Parts,02/12/2021,30007694,616.37 ,Fleet Factors Ltd
South Holland District Council,http://statistics.data.gov.uk/id/local-authority/32UF,Environmental Services,Workshop Parts,16/11/2021,30007803,770.70 ,EMG Anglia Ltd
South Holland District Council,http://statistics.data.gov.uk/id/local-authority/32UF,Environmental Services,Workshop Parts,16/11/2021,30007868,"1,642.80 ",Dennis Eagle
South Holland District Council,http://statistics.data.gov.uk/id/local-authority/32UF,Environmental Services,Workshop Parts,18/11/2021,30008032,513.50 ,EMG Anglia Ltd
South Holland District Council,http://statistics.data.gov.uk/id/local-authority/32UF,Environmental Services,Workshop Parts,25/11/2021,30008116,419.77 ,Dennis Eagle
South Holland District Council,http://statistics.data.gov.uk/id/local-authority/32UF,Environmental Services,Workshop Parts,23/11/2021,30008117,830.76 ,EMG Anglia Ltd
South Holland District Council,http://statistics.data.gov.uk/id/local-authority/32UF,Environmental Services,Workshop Parts,02/12/2021,30008303,"4,665.92 ",Fleet Factors Ltd
South Holland District Council,http://statistics.data.gov.uk/id/local-authority/32UF,Environmental Services,Workshop Parts,09/12/2021,30008399,"1,661.81 ",Fleet Factors Ltd
South Holland District Council,http://statistics.data.gov.uk/id/local-authority/32UF,Finance,Public Sector Partnership Services,18/11/2021,30008096,"257,205.75 ",Public Sector Partnership Services Ltd
South Holland District Council,http://statistics.data.gov.uk/id/local-authority/32UF,Finance,Purchase of Hardware,02/11/2021,30007252,"24,088.50 ",Ballicom International
South Holland District Council,http://statistics.data.gov.uk/id/local-authority/32UF,Housing,Agency Staff,09/11/2021,30007476,"1,000.00 ",G2 Recruitment Solutions
South Holland District Council,http://statistics.data.gov.uk/id/local-authority/32UF,Housing,Agency Staff,25/11/2021,30007825,"1,000.00 ",G2 Recruitment Solutions
South Holland District Council,http://statistics.data.gov.uk/id/local-authority/32UF,Housing,Agency Staff,25/11/2021,30007827,"1,000.00 ",G2 Recruitment Solutions
South Holland District Council,http://statistics.data.gov.uk/id/local-authority/32UF,Housing,Agency Staff,25/11/2021,30007833,"1,000.00 ",G2 Recruitment Solutions
South Holland District Council,http://statistics.data.gov.uk/id/local-authority/32UF,Housing,Agency Staff,23/11/2021,30007836,"1,000.00 ",G2 Recruitment Solutions
South Holland District Council,http://statistics.data.gov.uk/id/local-authority/32UF,Housing,Agency Staff,23/11/2021,30007876,900.00 ,G2 Recruitment Solutions
South Holland District Council,http://statistics.data.gov.uk/id/local-authority/32UF,Housing,Agency Staff,18/11/2021,30008092,999.00 ,Park Avenue Recruitment Ltd
South Holland District Council,http://statistics.data.gov.uk/id/local-authority/32UF,Housing,Agency Staff,23/11/2021,30008093,814.32 ,Park Avenue Recruitment Ltd
South Holland District Council,http://statistics.data.gov.uk/id/local-authority/32UF,Housing,Agency Staff,25/11/2021,30008142,398.86 ,Integrity Plus Ltd
South Holland District Council,http://statistics.data.gov.uk/id/local-authority/32UF,Housing,Agency Staff,30/11/2021,30008239,"1,000.62 ",Park Avenue Recruitment Ltd
South Holland District Council,http://statistics.data.gov.uk/id/local-authority/32UF,Housing,Agency Staff,30/11/2021,30008240,"1,000.89 ",Park Avenue Recruitment Ltd
South Holland District Council,http://statistics.data.gov.uk/id/local-authority/32UF,Housing,Agency Staff,30/11/2021,30008287,398.86 ,Integrity Plus Ltd
South Holland District Council,http://statistics.data.gov.uk/id/local-authority/32UF,Housing,Agency Staff,30/11/2021,30008369,398.86 ,Integrity Plus Ltd
South Holland District Council,http://statistics.data.gov.uk/id/local-authority/32UF,Housing,Bed and Breakfast Accommodation (Homelessness Service),04/11/2021,30006481,"1,466.67 ",The Mansion House Hotel
South Holland District Council,http://statistics.data.gov.uk/id/local-authority/32UF,Housing,Bed and Breakfast Accommodation (Homelessness Service),02/11/2021,30007325,"1,100.00 ",Riverside Hotel
South Holland District Council,http://statistics.data.gov.uk/id/local-authority/32UF,Housing,Bed and Breakfast Accommodation (Homelessness Service),02/11/2021,30007414,"3,000.00 ",The Mansion House Hotel
South Holland District Council,http://statistics.data.gov.uk/id/local-authority/32UF,Housing,Bed and Breakfast Accommodation (Homelessness Service),02/11/2021,30007451,770.00 ,Riverside Hotel
South Holland District Council,http://statistics.data.gov.uk/id/local-authority/32UF,Housing,Bed and Breakfast Accommodation (Homelessness Service),11/11/2021,30007839,875.00 ,Anglia Motel
South Holland District Council,http://statistics.data.gov.uk/id/local-authority/32UF,Housing,Bed and Breakfast Accommodation (Homelessness Service),11/11/2021,30007840,687.50 ,Anglia Motel
South Holland District Council,http://statistics.data.gov.uk/id/local-authority/32UF,Housing,Bed and Breakfast Accommodation (Homelessness Service),11/11/2021,30007841,562.50 ,Anglia Motel
South Holland District Council,http://statistics.data.gov.uk/id/local-authority/32UF,Housing,Bed and Breakfast Accommodation (Homelessness Service),11/11/2021,30007842,490.00 ,Anglia Motel
South Holland District Council,http://statistics.data.gov.uk/id/local-authority/32UF,Housing,Bed and Breakfast Accommodation (Homelessness Service),11/11/2021,30007844,490.00 ,Anglia Motel
South Holland District Council,http://statistics.data.gov.uk/id/local-authority/32UF,Housing,Bed and Breakfast Accommodation (Homelessness Service),11/11/2021,30007845,490.00 ,Anglia Motel
South Holland District Council,http://statistics.data.gov.uk/id/local-authority/32UF,Housing,Bed and Breakfast Accommodation (Homelessness Service),11/11/2021,30007847,490.00 ,Anglia Motel
South Holland District Council,http://statistics.data.gov.uk/id/local-authority/32UF,Housing,Bed and Breakfast Accommodation (Homelessness Service),30/11/2021,30008266,490.00 ,Anglia Motel
South Holland District Council,http://statistics.data.gov.uk/id/local-authority/32UF,Housing,Bed and Breakfast Accommodation (Homelessness Service),30/11/2021,30008267,812.50 ,Anglia Motel
South Holland District Council,http://statistics.data.gov.uk/id/local-authority/32UF,Housing,Bed and Breakfast Accommodation (Homelessness Service),30/11/2021,30008268,875.00 ,Anglia Motel
South Holland District Council,http://statistics.data.gov.uk/id/local-authority/32UF,Housing,Bed and Breakfast Accommodation (Homelessness Service),30/11/2021,30008269,875.00 ,Anglia Motel
South Holland District Council,http://statistics.data.gov.uk/id/local-authority/32UF,Housing,Bed and Breakfast Accommodation (Homelessness Service),30/11/2021,30008270,500.00 ,Anglia Motel
South Holland District Council,http://statistics.data.gov.uk/id/local-authority/32UF,Housing,Bed and Breakfast Accommodation (Homelessness Service),30/11/2021,30008271,625.00 ,Anglia Motel
South Holland District Council,http://statistics.data.gov.uk/id/local-authority/32UF,Housing,Bed and Breakfast Accommodation (Homelessness Service),30/11/2021,30008272,490.00 ,Anglia Motel
South Holland District Council,http://statistics.data.gov.uk/id/local-authority/32UF,Housing,Bed and Breakfast Accommodation (Homelessness Service),30/11/2021,30008275,490.00 ,Anglia Motel
South Holland District Council,http://statistics.data.gov.uk/id/local-authority/32UF,Housing,Furniture and Equipment,09/12/2021,30008366,689.66 ,Vodafone Ltd Corporate
South Holland District Council,http://statistics.data.gov.uk/id/local-authority/32UF,Housing,Grants and Contributions to Outside Bodies - No Service Received,04/11/2021,30006844,576.00 ,Language Line Ltd
South Holland District Council,http://statistics.data.gov.uk/id/local-authority/32UF,Housing,Grants and Contributions to Outside Bodies - No Service Received,11/11/2021,30007603,"2,589.74 ",YES Energy Solutions
South Holland District Council,http://statistics.data.gov.uk/id/local-authority/32UF,Housing,Grants and Contributions to Outside Bodies - No Service Received,11/11/2021,30007715,"1,556.57 ",Obam Domestic Lift Services Ltd
South Holland District Council,http://statistics.data.gov.uk/id/local-authority/32UF,Housing,Grants and Contributions to Outside Bodies - No Service Received,18/11/2021,30007717,"4,615.00 ",Dolphin Mobility East Midlands Ltd
South Holland District Council,http://statistics.data.gov.uk/id/local-authority/32UF,Housing,Grants and Contributions to Outside Bodies - No Service Received,11/11/2021,30007719,"2,640.00 ",Richard Architectural
South Holland District Council,http://statistics.data.gov.uk/id/local-authority/32UF,Housing,Grants and Contributions to Outside Bodies - No Service Received,25/11/2021,30008101,"14,557.00 ",Dolphin Mobility East Midlands Ltd
South Holland District Council,http://statistics.data.gov.uk/id/local-authority/32UF,Housing,Grants and Contributions to Outside Bodies - No Service Received,25/11/2021,30008140,"19,535.21 ",Brothertoft Build Ltd
South Holland District Council,http://statistics.data.gov.uk/id/local-authority/32UF,Housing,Grants and Contributions to Outside Bodies - No Service Received,30/11/2021,30008310,570.32 ,Longhurst Group
South Holland District Council,http://statistics.data.gov.uk/id/local-authority/32UF,Housing,Grants and Contributions to Outside Bodies - No Service Received,30/11/2021,30008311,"6,065.21 ",TKS of Holbeach
South Holland District Council,http://statistics.data.gov.uk/id/local-authority/32UF,Housing,Other Miscellaneous Expenses,25/11/2021,30008200,"31,721.43 ",Broadgate Builders (Spalding) Ltd
South Holland District Council,http://statistics.data.gov.uk/id/local-authority/32UF,Housing,Other Miscellaneous Expenses,25/11/2021,30008201,"10,767.63 ",Broadgate Homes Ltd
South Holland District Council,http://statistics.data.gov.uk/id/local-authority/32UF,Housing,Other Miscellaneous Expenses,25/11/2021,30008202,"10,092.87 ",Broadgate Homes Ltd
South Holland District Council,http://statistics.data.gov.uk/id/local-authority/32UF,Housing,Other Miscellaneous Expenses,25/11/2021,30008203,"17,905.29 ",Broadgate Builders (Spalding) Ltd
South Holland District Council,http://statistics.data.gov.uk/id/local-authority/32UF,Housing,Professional and Contractors Fees,02/11/2021,30007442,"4,365.25 ",Birketts Soicitors LLP
South Holland District Council,http://statistics.data.gov.uk/id/local-authority/32UF,Housing,Professional and Contractors Fees,11/11/2021,30007446,"1,103.59 ",Clapham and Collinge Lp Client Account
South Holland District Council,http://statistics.data.gov.uk/id/local-authority/32UF,Housing,Purchase of Buildings,02/11/2021,30007443,"1,000.00 ",Ashley King Development
South Holland District Council,http://statistics.data.gov.uk/id/local-authority/32UF,Housing,Purchase of Buildings,02/11/2021,30007444,"1,000.00 ",Ashley King Development
South Holland District Council,http://statistics.data.gov.uk/id/local-authority/32UF,Housing,Staff Recruitment,30/11/2021,30008164,"1,295.00 ",Ocean Media Group Ltd
South Holland District Council,http://statistics.data.gov.uk/id/local-authority/32UF,Housing,Works to Buildings (Main Contractor),09/11/2021,30007340,"19,707.60 ",D Brown Building Contractors Ltd
South Holland District Council,http://statistics.data.gov.uk/id/local-authority/32UF,Housing,Works to Buildings (Main Contractor),18/11/2021,30008067,"23,948.11 ",D Brown Building Contractors Ltd
South Holland District Council,http://statistics.data.gov.uk/id/local-authority/32UF,Housing,Works to Buildings (Sub Contractors),23/11/2021,30008003,"1,000.00 ",Birketts Soicitors LLP
South Holland District Council,http://statistics.data.gov.uk/id/local-authority/32UF,Housing Landlord Manager,Agency Staff,16/11/2021,30007504,813.12 ,Niyaa People
South Holland District Council,http://statistics.data.gov.uk/id/local-authority/32UF,Housing Landlord Manager,Agency Staff,23/11/2021,30007557,813.12 ,Niyaa People
South Holland District Council,http://statistics.data.gov.uk/id/local-authority/32UF,Housing Landlord Manager,Agency Staff,02/12/2021,30007637,"1,111.62 ",Niyaa People
South Holland District Council,http://statistics.data.gov.uk/id/local-authority/32UF,Housing Landlord Manager,Agency Staff,09/12/2021,30007818,522.90 ,Niyaa People
South Holland District Council,http://statistics.data.gov.uk/id/local-authority/32UF,Housing Landlord Manager,Agency Staff,25/11/2021,30008142,170.94 ,Integrity Plus Ltd
South Holland District Council,http://statistics.data.gov.uk/id/local-authority/32UF,Housing Landlord Manager,Agency Staff,14/12/2021,30008243,813.12 ,Niyaa People
South Holland District Council,http://statistics.data.gov.uk/id/local-authority/32UF,Housing Landlord Manager,Agency Staff,30/11/2021,30008245,831.25 ,personal information redacted
South Holland District Council,http://statistics.data.gov.uk/id/local-authority/32UF,Housing Landlord Manager,Agency Staff,30/11/2021,30008287,170.94 ,Integrity Plus Ltd
South Holland District Council,http://statistics.data.gov.uk/id/local-authority/32UF,Housing Landlord Manager,Agency Staff,30/11/2021,30008295,777.22 ,Niyaa People
South Holland District Council,http://statistics.data.gov.uk/id/local-authority/32UF,Housing Landlord Manager,Agency Staff,30/11/2021,30008369,170.94 ,Integrity Plus Ltd
South Holland District Council,http://statistics.data.gov.uk/id/local-authority/32UF,Housing Landlord Manager,Buildings Maintenance - Programmed,18/11/2021,30007838,"3,532.02 ",GBSG Ltd
South Holland District Council,http://statistics.data.gov.uk/id/local-authority/32UF,Housing Landlord Manager,Buildings Maintenance - Responsive,02/11/2021,30007351,495.99 ,andrew Hicks Ltd
South Holland District Council,http://statistics.data.gov.uk/id/local-authority/32UF,Housing Landlord Manager,Buildings Maintenance - Responsive,02/11/2021,30007376,650.00 ,L Fragale
South Holland District Council,http://statistics.data.gov.uk/id/local-authority/32UF,Housing Landlord Manager,Buildings Maintenance - Responsive,02/11/2021,30007377,"1,350.00 ",L Fragale
South Holland District Council,http://statistics.data.gov.uk/id/local-authority/32UF,Housing Landlord Manager,Buildings Maintenance - Responsive,02/11/2021,30007380,625.00 ,L Fragale
South Holland District Council,http://statistics.data.gov.uk/id/local-authority/32UF,Housing Landlord Manager,Buildings Maintenance - Responsive,30/11/2021,30007645,973.38 ,H20 Nationwide Limited
South Holland District Council,http://statistics.data.gov.uk/id/local-authority/32UF,Housing Landlord Manager,Buildings Maintenance - Responsive,09/11/2021,30007669,525.00 ,Barry Disdels Landscapes and Maintenance
South Holland District Council,http://statistics.data.gov.uk/id/local-authority/32UF,Housing Landlord Manager,Buildings Maintenance - Responsive,09/11/2021,30007670,"2,939.00 ",M and R Glass and Glazing Ltd
South Holland District Council,http://statistics.data.gov.uk/id/local-authority/32UF,Housing Landlord Manager,Buildings Maintenance - Responsive,09/11/2021,30007708,600.00 ,Barry Disdels Landscapes and Maintenance
South Holland District Council,http://statistics.data.gov.uk/id/local-authority/32UF,Housing Landlord Manager,Buildings Maintenance - Responsive,09/11/2021,30007709,"1,100.00 ",Barry Disdels Landscapes and Maintenance
South Holland District Council,http://statistics.data.gov.uk/id/local-authority/32UF,Housing Landlord Manager,Buildings Maintenance - Responsive,11/11/2021,30007830,227.18 ,GBSG Ltd
South Holland District Council,http://statistics.data.gov.uk/id/local-authority/32UF,Housing Landlord Manager,Buildings Maintenance - Responsive,23/11/2021,30008044,447.55 ,Aaron Services Ltd
South Holland District Council,http://statistics.data.gov.uk/id/local-authority/32UF,Housing Landlord Manager,Buildings Maintenance - Responsive,25/11/2021,30008062,800.00 ,Kev Forman Roofing
South Holland District Council,http://statistics.data.gov.uk/id/local-authority/32UF,Housing Landlord Manager,Buildings Maintenance - Responsive,25/11/2021,30008076,995.00 ,L Fragale
South Holland District Council,http://statistics.data.gov.uk/id/local-authority/32UF,Housing Landlord Manager,Buildings Maintenance - Responsive,25/11/2021,30008077,"1,150.00 ",L Fragale
South Holland District Council,http://statistics.data.gov.uk/id/local-authority/32UF,Housing Landlord Manager,Buildings Maintenance - Responsive,25/11/2021,30008084,"2,700.00 ",Boors Ltd
South Holland District Council,http://statistics.data.gov.uk/id/local-authority/32UF,Housing Landlord Manager,Buildings Maintenance - Responsive,30/11/2021,30008401,"5,119.00 ",M and R Glass and Glazing Ltd
South Holland District Council,http://statistics.data.gov.uk/id/local-authority/32UF,Housing Landlord Manager,Cesspool Emptying,02/11/2021,30007396,"1,650.00 ",Dalrod Drainage Solutions
South Holland District Council,http://statistics.data.gov.uk/id/local-authority/32UF,Housing Landlord Manager,Cesspool Emptying,09/12/2021,30008055,825.00 ,Dalrod Drainage Solutions
South Holland District Council,http://statistics.data.gov.uk/id/local-authority/32UF,Housing Landlord Manager,Computer Software Licence Costs,23/11/2021,30007528,"2,175.53 ",Automico Ltd
South Holland District Council,http://statistics.data.gov.uk/id/local-authority/32UF,Housing Landlord Manager,Computer Software Licence Costs,16/11/2021,30007834,"3,000.00 ",NEC Software Solutions UK Ltd
South Holland District Council,http://statistics.data.gov.uk/id/local-authority/32UF,Housing Landlord Manager,Computer Software Licence Costs,20/12/2021,30008344,"2,175.53 ",Automico Ltd
South Holland District Council,http://statistics.data.gov.uk/id/local-authority/32UF,Housing Landlord Manager,Drain Repairs,09/11/2021,30007395,"4,555.80 ",Dalrod Drainage Solutions
South Holland District Council,http://statistics.data.gov.uk/id/local-authority/32UF,Housing Landlord Manager,Drain Repairs,09/11/2021,30007667,"4,541.31 ",Dalrod Drainage Solutions
South Holland District Council,http://statistics.data.gov.uk/id/local-authority/32UF,Housing Landlord Manager,Drain Repairs,09/12/2021,30008054,701.30 ,Dalrod Drainage Solutions
South Holland District Council,http://statistics.data.gov.uk/id/local-authority/32UF,Housing Landlord Manager,Drain Repairs,09/12/2021,30008056,"2,956.40 ",Dalrod Drainage Solutions
South Holland District Council,http://statistics.data.gov.uk/id/local-authority/32UF,Housing Landlord Manager,External Painting Repairs,09/12/2021,30008059,"29,269.96 ",Mitie Property Services UK Ltd
South Holland District Council,http://statistics.data.gov.uk/id/local-authority/32UF,Housing Landlord Manager,Fuel and Oil,02/11/2021,30007239,164.98 ,C H Jones Ltd
South Holland District Council,http://statistics.data.gov.uk/id/local-authority/32UF,Housing Landlord Manager,Fuel and Oil,02/11/2021,30007426,729.48 ,C H Jones Ltd
South Holland District Council,http://statistics.data.gov.uk/id/local-authority/32UF,Housing Landlord Manager,Fuel and Oil,04/11/2021,30007537,592.21 ,C H Jones Ltd
South Holland District Council,http://statistics.data.gov.uk/id/local-authority/32UF,Housing Landlord Manager,Fuel and Oil,18/11/2021,30007889,634.73 ,C H Jones Ltd
South Holland District Council,http://statistics.data.gov.uk/id/local-authority/32UF,Housing Landlord Manager,Fuel and Oil,18/11/2021,30008091,411.56 ,C H Jones Ltd
South Holland District Council,http://statistics.data.gov.uk/id/local-authority/32UF,Housing Landlord Manager,Furniture and Equipment,04/11/2021,30007009,"1,070.00 ",Perfect Move
South Holland District Council,http://statistics.data.gov.uk/id/local-authority/32UF,Housing Landlord Manager,Furniture and Equipment,25/11/2021,30007601,"12,674.57 ",Tunstall Healthcare UK Ltd
South Holland District Council,http://statistics.data.gov.uk/id/local-authority/32UF,Housing Landlord Manager,Furniture and Equipment,30/11/2021,30008184,604.00 ,Forceshift Contracting Ltd
South Holland District Council,http://statistics.data.gov.uk/id/local-authority/32UF,Housing Landlord Manager,Furniture and Equipment,14/12/2021,30008304,"13,081.11 ",Tunstall Healthcare UK Ltd
South Holland District Council,http://statistics.data.gov.uk/id/local-authority/32UF,Housing Landlord Manager,Gas Repairs,30/11/2021,30007403,"1,666.25 ",Aaron Services Ltd
South Holland District Council,http://statistics.data.gov.uk/id/local-authority/32UF,Housing Landlord Manager,Gas Repairs,16/11/2021,30007496,942.74 ,Aaron Services Ltd
South Holland District Council,http://statistics.data.gov.uk/id/local-authority/32UF,Housing Landlord Manager,Gas Repairs,02/12/2021,30007638,"1,386.46 ",Aaron Services Ltd
South Holland District Council,http://statistics.data.gov.uk/id/local-authority/32UF,Housing Landlord Manager,Gas Repairs,02/12/2021,30007703,"4,509.83 ",Aaron Services Ltd
South Holland District Council,http://statistics.data.gov.uk/id/local-authority/32UF,Housing Landlord Manager,Gas Servicing,30/11/2021,30007404,"22,299.51 ",Aaron Services Ltd
South Holland District Council,http://statistics.data.gov.uk/id/local-authority/32UF,Housing Landlord Manager,Gas Servicing,23/11/2021,30008160,"2,000.28 ",Aaron Services Ltd
South Holland District Council,http://statistics.data.gov.uk/id/local-authority/32UF,Housing Landlord Manager,Grants and Contributions to Outside Bodies - No Service Received,04/11/2021,30006844,576.00 ,Language Line Ltd
South Holland District Council,http://statistics.data.gov.uk/id/local-authority/32UF,Housing Landlord Manager,Grounds Maintenance Contract (External),16/11/2021,30007871,"1,050.00 ",LSF Contractors Ltd
South Holland District Council,http://statistics.data.gov.uk/id/local-authority/32UF,Housing Landlord Manager,Legal Fees,02/12/2021,30007877,601.00 ,Capsticks Solicitors LLP
South Holland District Council,http://statistics.data.gov.uk/id/local-authority/32UF,Housing Landlord Manager,Legal Fees,30/11/2021,30008301,"1,163.00 ",Capsticks Solicitors LLP
South Holland District Council,http://statistics.data.gov.uk/id/local-authority/32UF,Housing Landlord Manager,Legal Fees,09/12/2021,30008348,762.00 ,Capsticks Solicitors LLP
South Holland District Council,http://statistics.data.gov.uk/id/local-authority/32UF,Housing Landlord Manager,Materials and Consumables,11/11/2021,30007546,"5,733.27 ",Gibbs and Dandy
South Holland District Council,http://statistics.data.gov.uk/id/local-authority/32UF,Housing Landlord Manager,Materials and Consumables,16/11/2021,30007548,"3,431.50 ",Gibbs and Dandy
South Holland District Council,http://statistics.data.gov.uk/id/local-authority/32UF,Housing Landlord Manager,Materials and Consumables,16/11/2021,30007724,"3,957.99 ",Gibbs and Dandy
South Holland District Council,http://statistics.data.gov.uk/id/local-authority/32UF,Housing Landlord Manager,Materials and Consumables,18/11/2021,30007870,"4,955.64 ",Gibbs and Dandy
South Holland District Council,http://statistics.data.gov.uk/id/local-authority/32UF,Housing Landlord Manager,Professional and Contractors Fees,16/11/2021,30007381,"6,000.00 ",NEC Software Solutions UK Ltd
South Holland District Council,http://statistics.data.gov.uk/id/local-authority/32UF,Housing Landlord Manager,Professional and Contractors Fees,25/11/2021,30007420,"1,305.00 ",Environtec Limited
South Holland District Council,http://statistics.data.gov.uk/id/local-authority/32UF,Housing Landlord Manager,Professional and Contractors Fees,16/11/2021,30007519,"1,800.00 ",NEC Software Solutions UK Ltd
South Holland District Council,http://statistics.data.gov.uk/id/local-authority/32UF,Housing Landlord Manager,Professional and Contractors Fees,18/11/2021,30007826,"4,401.52 ",Lincolnshire County Council
South Holland District Council,http://statistics.data.gov.uk/id/local-authority/32UF,Housing Landlord Manager,Professional and Contractors Fees,11/11/2021,30007835,553.00 ,Morgan Lambert Ltd 2018
South Holland District Council,http://statistics.data.gov.uk/id/local-authority/32UF,Housing Landlord Manager,Professional and Contractors Fees,30/11/2021,30007849,"1,500.00 ",Focus Consultants 2010 LLP
South Holland District Council,http://statistics.data.gov.uk/id/local-authority/32UF,Housing Landlord Manager,Professional and Contractors Fees,30/11/2021,30007850,"1,000.00 ",Focus Consultants 2010 LLP
South Holland District Council,http://statistics.data.gov.uk/id/local-authority/32UF,Housing Landlord Manager,Professional and Contractors Fees,30/11/2021,30007851,"1,500.00 ",Focus Consultants 2010 LLP
South Holland District Council,http://statistics.data.gov.uk/id/local-authority/32UF,Housing Landlord Manager,Professional and Contractors Fees,23/11/2021,30008145,"8,160.48 ",The Housing Ombudsman Service
South Holland District Council,http://statistics.data.gov.uk/id/local-authority/32UF,Housing Landlord Manager,Professional Fees,23/11/2021,30007582,"10,000.00 ",NEC Software Solutions UK Ltd
South Holland District Council,http://statistics.data.gov.uk/id/local-authority/32UF,Housing Landlord Manager,Professional Fees,23/11/2021,30007609,"56,425.50 ",NEC Software Solutions UK Ltd
South Holland District Council,http://statistics.data.gov.uk/id/local-authority/32UF,Housing Landlord Manager,Professional Fees,09/12/2021,30008233,500.00 ,NEC Software Solutions UK Ltd
South Holland District Council,http://statistics.data.gov.uk/id/local-authority/32UF,Housing Landlord Manager,Roof Repairs,02/11/2021,30007393,"1,850.00 ",Kev Forman Roofing
South Holland District Council,http://statistics.data.gov.uk/id/local-authority/32UF,Housing Landlord Manager,Roof Repairs,18/11/2021,30007705,520.00 ,Kev Forman Roofing
South Holland District Council,http://statistics.data.gov.uk/id/local-authority/32UF,Housing Landlord Manager,Roof Repairs,18/11/2021,30008058,445.00 ,Wrights and Holbeach Asphalt Ltd
South Holland District Council,http://statistics.data.gov.uk/id/local-authority/32UF,Housing Landlord Manager,Roof Repairs,18/11/2021,30008060,760.00 ,Kev Forman Roofing
South Holland District Council,http://statistics.data.gov.uk/id/local-authority/32UF,Housing Landlord Manager,Roof Repairs,25/11/2021,30008061,700.00 ,Kev Forman Roofing
South Holland District Council,http://statistics.data.gov.uk/id/local-authority/32UF,Housing Landlord Manager,Roof Repairs,18/11/2021,30008063,525.00 ,Wrights and Holbeach Asphalt Ltd
South Holland District Council,http://statistics.data.gov.uk/id/local-authority/32UF,Housing Landlord Manager,Roof Repairs,25/11/2021,30008073,"1,960.00 ",Wrights and Holbeach Asphalt Ltd
South Holland District Council,http://statistics.data.gov.uk/id/local-authority/32UF,Housing Landlord Manager,Roof Repairs,18/11/2021,30008074,"1,740.00 ",Wrights and Holbeach Asphalt Ltd
South Holland District Council,http://statistics.data.gov.uk/id/local-authority/32UF,Housing Landlord Manager,Roof Repairs,30/11/2021,30008406,585.00 ,Kev Forman Roofing
South Holland District Council,http://statistics.data.gov.uk/id/local-authority/32UF,Housing Landlord Manager,Roof Repairs,30/11/2021,30008407,620.00 ,Kev Forman Roofing
South Holland District Council,http://statistics.data.gov.uk/id/local-authority/32UF,Housing Landlord Manager,Sewerage Treatment Works,16/11/2021,30007699,"24,718.07 ",C G Godfrey Ltd
South Holland District Council,http://statistics.data.gov.uk/id/local-authority/32UF,Housing Landlord Manager,Solid Fuel Servicing,02/12/2021,30007702,467.40 ,Aaron Services Ltd
South Holland District Council,http://statistics.data.gov.uk/id/local-authority/32UF,Housing Landlord Manager,Staff Training Expenses (Non-Payroll),18/11/2021,30007450,"1,400.00 ",Bytesize Training Ltd
South Holland District Council,http://statistics.data.gov.uk/id/local-authority/32UF,Housing Landlord Manager,Staff Training Expenses (Non-Payroll),25/11/2021,30007629,"1,745.00 ",Corgi Technical Services Limited
South Holland District Council,http://statistics.data.gov.uk/id/local-authority/32UF,Housing Landlord Manager,Staff Training Expenses (Non-Payroll),25/11/2021,30007872,"1,400.00 ",Bytesize Training Ltd
South Holland District Council,http://statistics.data.gov.uk/id/local-authority/32UF,Housing Landlord Manager,Staff Training Expenses (Non-Payroll),02/12/2021,30008134,"1,750.00 ",Bytesize Training Ltd
South Holland District Council,http://statistics.data.gov.uk/id/local-authority/32UF,Housing Landlord Manager,Subscriptions to Organisations and Other Bodies,04/11/2021,30007002,"3,518.71 ",Shared Services Connected Ltd Mappa
South Holland District Council,http://statistics.data.gov.uk/id/local-authority/32UF,Housing Landlord Manager,Void Repairs,09/11/2021,30007701,"1,950.00 ",Gelder Limited
South Holland District Council,http://statistics.data.gov.uk/id/local-authority/32UF,Housing Landlord Manager,Void Repairs,11/11/2021,30007710,"2,855.00 ",M and R Glass and Glazing Ltd
South Holland District Council,http://statistics.data.gov.uk/id/local-authority/32UF,Housing Landlord Manager,Void Repairs,11/11/2021,30007738,"3,000.00 ",Healthguard Limited
South Holland District Council,http://statistics.data.gov.uk/id/local-authority/32UF,Housing Landlord Manager,Void Repairs,25/11/2021,30008082,"4,700.00 ",Boors Ltd
South Holland District Council,http://statistics.data.gov.uk/id/local-authority/32UF,Housing Landlord Manager,Void Repairs,25/11/2021,30008083,"2,340.00 ",Boors Ltd
South Holland District Council,http://statistics.data.gov.uk/id/local-authority/32UF,Housing Landlord Manager,Works to Buildings (Main Contractor),11/11/2021,30007260,"11,322.15 ",D Brown Building Contractors Ltd
South Holland District Council,http://statistics.data.gov.uk/id/local-authority/32UF,Housing Landlord Manager,Works to Buildings (Main Contractor),04/11/2021,30007331,"2,277.07 ",C G Godfrey Ltd
South Holland District Council,http://statistics.data.gov.uk/id/local-authority/32UF,Housing Landlord Manager,Works to Buildings (Main Contractor),02/11/2021,30007338,"11,479.47 ",Hodgson Sayers Ltd
South Holland District Council,http://statistics.data.gov.uk/id/local-authority/32UF,Housing Landlord Manager,Works to Buildings (Main Contractor),04/11/2021,30007339,"39,997.43 ",Hodgson Sayers Ltd
South Holland District Council,http://statistics.data.gov.uk/id/local-authority/32UF,Housing Landlord Manager,Works to Buildings (Main Contractor),18/11/2021,30007374,"86,078.33 ",Aaron Services Ltd
South Holland District Council,http://statistics.data.gov.uk/id/local-authority/32UF,Housing Landlord Manager,Works to Buildings (Main Contractor),23/11/2021,30007422,"1,915.71 ",Hodgson Sayers Ltd
South Holland District Council,http://statistics.data.gov.uk/id/local-authority/32UF,Housing Landlord Manager,Works to Buildings (Main Contractor),23/11/2021,30007423,"2,767.07 ",Hodgson Sayers Ltd
South Holland District Council,http://statistics.data.gov.uk/id/local-authority/32UF,Housing Landlord Manager,Works to Buildings (Main Contractor),23/11/2021,30007424,"2,566.47 ",Hodgson Sayers Ltd
South Holland District Council,http://statistics.data.gov.uk/id/local-authority/32UF,Housing Landlord Manager,Works to Buildings (Main Contractor),23/11/2021,30007674,"1,835.73 ",Hodgson Sayers Ltd
South Holland District Council,http://statistics.data.gov.uk/id/local-authority/32UF,Housing Landlord Manager,Works to Buildings (Main Contractor),18/11/2021,30007711,"2,583.50 ",C G Godfrey Ltd
South Holland District Council,http://statistics.data.gov.uk/id/local-authority/32UF,Housing Landlord Manager,Works to Buildings (Main Contractor),18/11/2021,30007712,"1,748.34 ",C G Godfrey Ltd
South Holland District Council,http://statistics.data.gov.uk/id/local-authority/32UF,Housing Landlord Manager,Works to Buildings (Main Contractor),18/11/2021,30007733,"7,266.06 ",Acis HomePlus
South Holland District Council,http://statistics.data.gov.uk/id/local-authority/32UF,Housing Landlord Manager,Works to Buildings (Main Contractor),16/11/2021,30007735,"2,760.00 ",A Coupland (Surfacing) Ltd
South Holland District Council,http://statistics.data.gov.uk/id/local-authority/32UF,Housing Landlord Manager,Works to Buildings (Main Contractor),11/11/2021,30007737,750.00 ,Brothertoft Build Ltd
South Holland District Council,http://statistics.data.gov.uk/id/local-authority/32UF,Housing Landlord Manager,Works to Buildings (Main Contractor),11/11/2021,30007742,750.00 ,Brothertoft Build Ltd
South Holland District Council,http://statistics.data.gov.uk/id/local-authority/32UF,Housing Landlord Manager,Works to Buildings (Main Contractor),11/11/2021,30007743,"9,720.80 ",Brothertoft Build Ltd
South Holland District Council,http://statistics.data.gov.uk/id/local-authority/32UF,Housing Landlord Manager,Works to Buildings (Main Contractor),11/11/2021,30007771,"24,428.05 ",D Brown Building Contractors Ltd
South Holland District Council,http://statistics.data.gov.uk/id/local-authority/32UF,Housing Landlord Manager,Works to Buildings (Main Contractor),11/11/2021,30007772,"65,467.91 ",D Brown Building Contractors Ltd
South Holland District Council,http://statistics.data.gov.uk/id/local-authority/32UF,Housing Landlord Manager,Works to Buildings (Main Contractor),18/11/2021,30007857,"12,559.33 ",Acis HomePlus
South Holland District Council,http://statistics.data.gov.uk/id/local-authority/32UF,Housing Landlord Manager,Works to Buildings (Main Contractor),16/11/2021,30007858,"6,236.66 ",Lincolnshire Bathrooms and Wetrooms
South Holland District Council,http://statistics.data.gov.uk/id/local-authority/32UF,Housing Landlord Manager,Works to Buildings (Main Contractor),16/11/2021,30007859,"6,841.31 ",M P L Home Improvements
South Holland District Council,http://statistics.data.gov.uk/id/local-authority/32UF,Housing Landlord Manager,Works to Buildings (Main Contractor),18/11/2021,30008047,"215,951.58 ",Hodgson Sayers Ltd
South Holland District Council,http://statistics.data.gov.uk/id/local-authority/32UF,Housing Landlord Manager,Works to Buildings (Main Contractor),18/11/2021,30008048,"12,647.89 ",Hodgson Sayers Ltd
South Holland District Council,http://statistics.data.gov.uk/id/local-authority/32UF,Housing Landlord Manager,Works to Buildings (Main Contractor),09/12/2021,30008053,"21,466.59 ",Aaron Services Ltd
South Holland District Council,http://statistics.data.gov.uk/id/local-authority/32UF,Housing Landlord Manager,Works to Buildings (Main Contractor),18/11/2021,30008100,"5,793.33 ",Martin Greaves Building Contractor
South Holland District Council,http://statistics.data.gov.uk/id/local-authority/32UF,Housing Landlord Manager,Works to Buildings (Main Contractor),02/12/2021,30008139,569.00 ,Obam Domestic Lift Services Ltd
South Holland District Council,http://statistics.data.gov.uk/id/local-authority/32UF,Housing Landlord Manager,Works to Buildings (Main Contractor),30/11/2021,30008409,"5,362.50 ",D Brown Building Contractors Ltd
South Holland District Council,http://statistics.data.gov.uk/id/local-authority/32UF,Housing Landlord Manager,Works to Buildings (Main Contractor),30/11/2021,30008410,"15,152.04 ",D Brown Building Contractors Ltd
South Holland District Council,http://statistics.data.gov.uk/id/local-authority/32UF,Housing Landlord Manager,Works to Buildings (Main Contractor),07/12/2021,30008413,"24,201.47 ",Aaron Services Ltd
South Holland District Council,http://statistics.data.gov.uk/id/local-authority/32UF,Housing Landlord Manager,Works to Buildings (Main Contractor),09/12/2021,30008428,"6,535.00 ",Boors Ltd
South Holland District Council,http://statistics.data.gov.uk/id/local-authority/32UF,HR,Other Income,25/11/2021,30008229,-27.71 ,Unison
South Holland District Council,http://statistics.data.gov.uk/id/local-authority/32UF,ICT and Customer Services,Computer Software Licence Costs,25/11/2021,30007778,"5,698.50 ",Civica UK Limited
South Holland District Council,http://statistics.data.gov.uk/id/local-authority/32UF,ICT and Customer Services,Computer Software Licence Costs,25/11/2021,30007933,"7,500.00 ",Goss Interactive Ltd
South Holland District Council,http://statistics.data.gov.uk/id/local-authority/32UF,ICT and Customer Services,Computer Software Licence Costs,25/11/2021,30007934,"3,540.00 ",Goss Interactive Ltd
South Holland District Council,http://statistics.data.gov.uk/id/local-authority/32UF,ICT and Customer Services,Computer Software Licence Costs,25/11/2021,30007935,"2,250.00 ",Goss Interactive Ltd
South Holland District Council,http://statistics.data.gov.uk/id/local-authority/32UF,ICT and Customer Services,Computer Software Licence Costs,25/11/2021,30007936,"7,500.00 ",Goss Interactive Ltd
South Holland District Council,http://statistics.data.gov.uk/id/local-authority/32UF,ICT and Customer Services,Professional and Contractors Fees,25/11/2021,30007633,"3,870.00 ",Civica UK Limited
South Holland District Council,http://statistics.data.gov.uk/id/local-authority/32UF,ICT and Customer Services,PSPS Non-Base Contract Costs,11/11/2021,30007783,"1,852.20 ",Public Sector Partnership Services Ltd
South Holland District Council,http://statistics.data.gov.uk/id/local-authority/32UF,ICT and Customer Services,PSPS Non-Base Contract Costs,16/11/2021,30007873,"1,852.20 ",Public Sector Partnership Services Ltd
South Holland District Council,http://statistics.data.gov.uk/id/local-authority/32UF,ICT and Customer Services,PSPS Non-Base Contract Costs,25/11/2021,30007874,"4,846.96 ",Public Sector Partnership Services Ltd
South Holland District Council,http://statistics.data.gov.uk/id/local-authority/32UF,ICT and Customer Services,Telephones,30/11/2021,30007899,"1,807.48 ",Daisy Communications Ltd
South Holland District Council,http://statistics.data.gov.uk/id/local-authority/32UF,ICT and Customer Services,Telephones,07/12/2021,30008358,"3,240.00 ",Vodafone Ltd Corporate
South Holland District Council,http://statistics.data.gov.uk/id/local-authority/32UF,Planning,Agency - Vacant Post Cover,25/11/2021,30007894,"1,546.95 ",Vivid Resourcing
South Holland District Council,http://statistics.data.gov.uk/id/local-authority/32UF,Planning,Agency - Vacant Post Cover,02/12/2021,30007977,"1,491.75 ",Vivid Resourcing
South Holland District Council,http://statistics.data.gov.uk/id/local-authority/32UF,Planning,Agency - Vacant Post Cover,07/12/2021,30008264,"1,462.50 ",Vivid Resourcing
South Holland District Council,http://statistics.data.gov.uk/id/local-authority/32UF,Planning,Professional and Contractors Fees,16/11/2021,30007114,"2,100.00 ",CP Viability Ltd
South Holland District Council,http://statistics.data.gov.uk/id/local-authority/32UF,Planning,Professional and Contractors Fees,09/12/2021,30008189,"2,250.00 ",CP Viability Ltd
South Holland District Council,http://statistics.data.gov.uk/id/local-authority/32UF,Planning,Professional and Contractors Fees,09/12/2021,30008191,"4,000.00 ",CP Viability Ltd
South Holland District Council,http://statistics.data.gov.uk/id/local-authority/32UF,Public Protection,Commercial Vehicle Lease Payments (Less than 12 months),30/11/2021,30007968,640.02 ,Alphabet Gb Limited
South Holland District Council,http://statistics.data.gov.uk/id/local-authority/32UF,Public Protection,Fuel and Oil,02/11/2021,30007426,39.87 ,C H Jones Ltd
South Holland District Council,http://statistics.data.gov.uk/id/local-authority/32UF,Public Protection,Fuel and Oil,18/11/2021,30008091,40.42 ,C H Jones Ltd
South Holland District Council,http://statistics.data.gov.uk/id/local-authority/32UF,Public Protection,Furniture and Equipment,11/11/2021,30007814,886.13 ,Banner Group T A Spectrum
South Holland District Council,http://statistics.data.gov.uk/id/local-authority/32UF,Public Protection,Other Revenue Grants Reimbursements and Contributions (Government),09/12/2021,30007846,"31,693.00 ", Mhclg
South Holland District Council,http://statistics.data.gov.uk/id/local-authority/32UF,Public Protection,Professional and Contractors Fees,02/11/2021,30007036,"1,064.00 ",Robert Murphy Ta Keystone Consultants
South Holland District Council,http://statistics.data.gov.uk/id/local-authority/32UF,Public Protection,Professional and Contractors Fees,02/11/2021,30007054,"1,550.00 ",Robert Murphy Ta Keystone Consultants
South Holland District Council,http://statistics.data.gov.uk/id/local-authority/32UF,Public Protection,Professional and Contractors Fees,18/11/2021,30007969,588.00 ,Robert Murphy Ta Keystone Consultants
South Holland District Council,http://statistics.data.gov.uk/id/local-authority/32UF,Public Protection,Public Courses and Workshops,25/11/2021,30007952,756.00 ,Highfield Awarding Body For Compliance
South Holland District Council,http://statistics.data.gov.uk/id/local-authority/32UF,Public Protection,Rent Payments,30/11/2021,30008354,600.00 ,Monkshouse Primary School
South Holland District Council,http://statistics.data.gov.uk/id/local-authority/32UF,SHDC Revenues & Benefits,Other Income,30/11/2021,30007939,645.67 ,Jacobs Certificated Bailiffs
South Holland District Council,http://statistics.data.gov.uk/id/local-authority/32UF,SHDC Revenues & Benefits,Other Income,14/12/2021,30008418,679.80 ,Jacobs Certificated Bailiffs
South Holland District Council,http://statistics.data.gov.uk/id/local-authority/32UF,SHDC Revenues & Benefits,Professional and Contractors Fees,04/11/2021,30007497,"3,000.00 ",Wilks Head and Eve LLP
South Holland District Council,http://statistics.data.gov.uk/id/local-authority/32UF,SHDC Revenues & Benefits,PSPS Non-Base Contract Costs,02/12/2021,30008361,"35,150.00 ",Public Sector Partnership Services Ltd
South Holland District Council,http://statistics.data.gov.uk/id/local-authority/32UF,Spalding Specials,Gas,18/11/2021,30007584,"1,654.62 ",British Gas Business
South Holland District Council,http://statistics.data.gov.uk/id/local-authority/32UF,Spalding Specials,Professional and Contractors Fees,23/11/2021,30008040,"3,750.00 ",D Harrison
South Holland District Council,http://statistics.data.gov.uk/id/local-authority/32UF,Town Centre Improvement Plan,External Printing and Design Costs,25/11/2021,30008250,548.00 ,Classic Printers Crowland Ltd
South Holland District Council,http://statistics.data.gov.uk/id/local-authority/32UF,Town Centre Improvement Plan,Furniture and Equipment,11/11/2021,30007462,"2,305.60 ",Real Christmas Trees Ltd
South Holland District Council,http://statistics.data.gov.uk/id/local-authority/32UF,Town Centre Improvement Plan,Furniture and Equipment,11/11/2021,30007463,904.00 ,Real Christmas Trees Ltd
South Holland District Council,http://statistics.data.gov.uk/id/local-authority/32UF,Town Centre Improvement Plan,Other Miscellaneous Expenses,25/11/2021,30008247,522.00 ,Popcorn Media
South Holland District Council,http://statistics.data.gov.uk/id/local-authority/32UF,Town Centre Improvement Plan,Professional and Contractors Fees,04/11/2021,30007530,832.32 ,personal information redacted
South Holland District Council,http://statistics.data.gov.uk/id/local-authority/32UF,Town Centre Improvement Plan,Professional and Contractors Fees,11/11/2021,30007829,"2,417.00 ",Patrick Limming
South Holland District Council,http://statistics.data.gov.uk/id/local-authority/32UF,Town Centre Improvement Plan,Professional and Contractors Fees,16/11/2021,30007893,558.50 ,Market Place Management Ltd
